Cogmind - Beta 15 @@@ ROGUE MODE // 2025.09.06 @ 04:42:12 Player: lepire Result: Self-destructed Performance ------------- Evolutions (2) 1000 Regions Visited (4) 800 Robots Destroyed (11) 55 Value Destroyed (89) 89 Prototype IDs (0) 0 Alien Tech Used (0) 0 Bonus (0) 0 TOTAL SCORE: 1944 Bonus ------- None Cogmind --------- Core Integrity 550/550 Matter 294/300 Energy 125/125 System Corruption 0% Temperature Cool (0) Movement Flying (280) Ox3 Location -8/Materials Parts ------- > --- POWER (1) -------- Light Ion Engine > --- PROPULSION (4) --- Flight Unit > --- UTILITY (4) ------ Small Storage Unit Structural Scanner Improved Trap Extractor (0/6) > --- WEAPON (2) ------- Light Assault Rifle > --- INVENTORY (8) ---- Aluminum Leg Weight Redist. System Visual Processing Unit Seismic Detector ECM Suite Medium Laser Light Assault Rifle Rocket Launcher Peak State ------------ > --- POWER ------------ Light Ion Engine > --- PROPULSION ------- Aluminum Leg Aluminum Leg > --- UTILITY ---------- Small Storage Unit ECM Suite Hacking Suite Improved Trap Extractor > --- WEAPON ----------- Light Assault Rifle Light Assault Rifle > --- INVENTORY -------- Light Ion Engine Flight Unit Flight Unit Weight Redist. System Visual Processing Unit Seismic Detector Medium Laser Rocket Launcher [Rating: 15] Favorites ----------- Power Light Ion Engine Engine Light Ion Engine Propulsion Aluminum Leg Leg Aluminum Leg Flight Unit Flight Unit Utility Small Storage Unit Device Structural Scanner Storage Small Storage Unit Hackware Hacking Suite Weapon Light Assault Rifle Energy Gun Medium Laser Ballistic Gun Light Assault Rifle Build | -11 -10 -9 -9 -8 ------- Run | Yrd Mat Mat Min Mat Slots Evolved 4 | . . 2 . 2 Power . | . . . . . Propulsion 2 | . . . . 2 Utility 2 | . . 2 . . Weapon . | . . . . . Parts Attached 19 | 6 3 2 7 1 Power 4 | 1 1 . 2 . Engine 4 | 1 1 . 2 . Core . | . . . . . Reactor . | . . . . . Propulsion 4 | 2 . . 2 . Treads . | . . . . . Leg 2 | 2 . . . . Wheel . | . . . . . Hover . | . . . . . Flight 2 | . . . 2 . Utility 7 | 2 1 2 1 1 Device 5 | 1 1 1 1 1 Storage 1 | 1 . . . . Processor . | . . . . . Hackware 1 | . . 1 . . Protection . | . . . . . Artifact . | . . . . . Weapon 4 | 1 1 . 2 . Energy Gun 2 | 1 1 . . . Energy Cannon . | . . . . . Ballistic Gun 2 | . . . 2 . Ballistic Cannon . | . . . . . Launcher . | . . . . . Special Weapon . | . . . . . Impact Weapon . | . . . . . Slashing Weapon . | . . . . . Piercing Weapon . | . . . . . Special Melee Weapon . | . . . . . Unidentified Prototypes . | . . . . . Corrupted Parts 1 | . . . 1 . System Corruption 1 | . . . 1 . Parts Lost 5 | . . . 4 1 Power 1 | . . . 1 . Propulsion 2 | . . . 1 1 Utility 1 | . . . 1 . Weapon 1 | . . . 1 . Highest Loss Streak 2 | . . . 2 1 To Critical Strikes . | . . . . . Average Backups 7 | 2 7 6 7 8 Power . | . . . . . Propulsion 1 | . 1 2 1 1 Utility 3 | . 3 3 3 4 Weapon 2 | 1 1 1 2 3 Tool/Special . | . . . . . Unused Backups 7 | . 4 . . 3 Power . | . . . . . Propulsion 1 | . 1 . . . Utility 3 | . 1 . . 2 Weapon 3 | . 2 . . 1 Tool/Special . | . . . . . Average Slot Usage (%) 91 | . 94 98 93 63 Engine 11 | . 14 11 10 9 Leg 16 | . 28 22 13 . Flight 6 | . . . 8 18 Device 19 | . 14 20 22 18 Storage 11 | . 14 11 11 9 Hackware 6 | . . 11 9 . Energy Gun 8 | . 23 22 1 . Ballistic Gun 10 | . . . 16 9 Peak Build Rating 15 | 6 8 11 15 11 Average Rating 10 | 4 7 11 12 10 On Entrance 7 | . 6 8 11 11 Naked Turns . | . . . . . Heaviest Build 15 | 13 15 15 15 14 Greatest Support 20 | 20 20 20 20 8 Greatest Overweight (x) 3 | 3 . . 1 1 Average Overweight (x) . | . . . . 1 Largest Inventory Capacity 8 | 8 8 8 8 8 Average Capacity 7 | 7 8 8 8 8 Most Carried 8 | 4 8 7 8 8 Average Carried 7 | 2 7 6 7 8 Final Capacity 8 | 8 8 8 8 8 Final Carried 8 | 4 8 6 8 8 Class Distribution -------------------- 60% | Scavenger-Mutant 33% | Mutant 6% | Infiltrator-Mutant Dominant Class ---------------- Mutant | -10/Materials Infiltrator-Mutant | -9/Materials Scavenger-Mutant | -9/Mines Scavenger-Mutant | -8/Materials Resources | -11 -10 -9 -9 -8 ----------- Run | Yrd Mat Mat Min Mat Matter Collected 381 | 260 30 . 91 . Remotely . | . . . . . Salvage Created 276 | 105 70 . 101 . Parts 21 | 6 5 . 10 . Haulers Intercepted 1 | . 1 . . . Recyclers Shooed 1 | . . . 1 . Parts Field Recycled . | . . . . . Retrieved Matter . | . . . . . Parts Self-Destructed . | . . . . . Prevented . | . . . . . Kills | -11 -10 -9 -9 -8 ------- Run | Yrd Mat Mat Min Mat Combat Hostiles Destroyed 5 | . . . 5 . Guns 5 | . . . 5 . Classes Destroyed 6 | 2 2 . 2 . Worker 1 | . . . 1 . Tunneler 2 | 2 . . . . Hauler 1 | . 1 . . . Recycler 1 | 1 . . . . Operator 1 | . 1 . . . Swarmer 5 | . . . 5 . Best Kill Streak 6 | 1 1 . 6 . Combat Bots Only 5 | . . . 5 . Max Kills in Single Turn 2 | 1 1 . 2 . Gunslinging 1 | . . . 1 . Exploded . | . . . . . Melee . | . . . . . Uniques/NPCs Destroyed . | . . . . . Combat | -11 -10 -9 -9 -8 -------- Run | Yrd Mat Mat Min Mat Hostile Shots Fired 56 | . . 4 50 2 Missed 9 | . . . 9 . Hits 47 | . . 4 41 2 Projectile 47 | . . 4 41 2 Damage Taken 483 | . . 52 399 32 Core 101 | . . 11 90 . Absorbed by Shields . | . . . . . Core Remaining (%) 91 | 100 100 . 74 . Volleys Fired 39 | 10 16 . 12 1 Largest 2 | 1 2 . 2 1 Hottest 90 | 50 90 . 90 20 Shots Fired 63 | 10 32 . 20 1 Gun 63 | 10 32 . 20 1 Cannon . | . . . . . Launcher . | . . . . . Special . | . . . . . Kinetic 2 | . . . 1 1 Thermal 38 | 10 16 . 12 . Explosive . | . . . . . Electromagnetic 23 | . 16 . 7 . Robot Hit Streak 5 | 3 3 . 5 . Robot Miss Streak 4 | 3 4 . 3 1 Penetration Max . | . . . . . Secondary Targets 1 | . . . 1 . Max Gunslinging Chain 1 | . . . 1 . Shots Hit Robots 35 | 6 16 . 13 . Core Hits 14 | 4 4 . 6 . Critical Kills . | . . . . . Critical Parts Destroyed . | . . . . . Critical Strikes 1 | . 1 . . . Burn 1 | . 1 . . . Melee Attacks . | . . . . . Impact . | . . . . . Slashing . | . . . . . Piercing . | . . . . . Sneak Attacks . | . . . . . Combat Hostiles . | . . . . . Follow-up Attacks . | . . . . . Damage Inflicted 473 | 74 215 . 184 . Guns 473 | 74 215 . 184 . Cannons . | . . . . . Explosions . | . . . . . Melee . | . . . . . Ramming . | . . . . . Kinetic . | . . . . . Thermal 326 | 74 139 . 113 . Explosive . | . . . . . Electromagnetic 147 | . 76 . 71 . Impact . | . . . . . Slashing . | . . . . . Piercing . | . . . . . Highest Corruption 1 | . . . 1 . Average Corruption 1 | . . . 1 . Corruption Purged . | . . . . . Corruption Blocked . | . . . . . Effects 7 | . . . 7 . Message Errors 1 | . . . 1 . Matter Fused 2 | . . . 2 . Heat Flow Errors 2 | . . . 2 . Data Loss (minor) 1 | . . . 1 . Data Loss (major) 1 | . . . 1 . Overload Shots . | . . . . . Overflow Damage . | . . . . . Projectiles . | . . . . . Explosions . | . . . . . Melee . | . . . . . Knockbacks . | . . . . . Impact . | . . . . . Kinetic . | . . . . . Secondary . | . . . . . Self-Inflicted Damage . | . . . . . Shots . | . . . . . Rammed . | . . . . . Targets Rammed . | . . . . . Kicked . | . . . . . Crushed . | . . . . . Highest Temperature 243 | 40 120 . 243 . Average Temperature 55 | 17 42 . 88 . Received Heat Transfer 102 | . . 21 63 18 Siege Activations . | . . . . . Martial Activations . | . . . . . Shielding Activations . | . . . . . Robots Disrupted . | . . . . . Combat Hostiles . | . . . . . Robots Corrupted . | . . . . . Combat Hostiles . | . . . . . Parts Fried . | . . . . . Impact Corruptions . | . . . . . Robots Melted 1 | . 1 . . . Combat Hostiles . | . . . . . Parts Melted 3 | . 3 . . . Heat Transferred 1036 | 222 481 . 333 . Parts Sabotaged . | . . . . . Parts Stolen . | . . . . . Parts Stripped . | . . . . . Power Chain Reactions . | . . . . . Alert | -11 -10 -9 -9 -8 ------- Run | Yrd Mat Mat Min Mat Maximum Alert Level . | . . . . . Low Security (%) 100 | 100 100 100 100 100 Level 1 . | . . . . . Level 2 . | . . . . . Level 3 . | . . . . . Level 4 . | . . . . . Level 5 . | . . . . . High Security . | . . . . . Max Security . | . . . . . Peak Influence 95 | 5 7 1 95 2 Initial 2 | . . . . 2 Average 6 | . . . 10 . Influence Increases 193 | 15 12 1 165 . Destroy 0b10 Robot/C 140 | . . . 140 . Destroy 0b10 Robot/NC 30 | 15 10 . 5 . Destroy Leader 22 | . 2 . 20 . Successful Hack 1 | . . 1 . . Influence Decreases 193 | 15 12 1 157 8 Entered New Map 6 | . . . . 6 Time Decay 147 | 15 12 1 117 2 Lost Part 20 | . . . 20 . Lost Ally 20 | . . . 20 . Squads Dispatched 1 | . 1 . . . Investigation . | . . . . . Extermination . | . . . . . Reinforcement 1 | . 1 . . . Assault . | . . . . . Garrison . | . . . . . Intercept . | . . . . . Searches Triggered . | . . . . . Construction Impeded . | . . . . . Haulers Reinforced . | . . . . . Active Scanning Responses . | . . . . . Cargo Convoy Interrupts . | . . . . . Stealth | -11 -10 -9 -9 -8 --------- Run | Yrd Mat Mat Min Mat Distress Signals 3 | . 1 . 1 1 Communications Jammed . | . . . . . Distress Signals . | . . . . . Times Spotted 29 | . 4 2 18 5 Peak Tracking Total 7 | . . 2 3 7 Tactical Retreats 4 | . . . 4 . Traps | -11 -10 -9 -9 -8 ------- Run | Yrd Mat Mat Min Mat Traps Triggered 1 | . . . 1 . Indirectly . | . . . . . Trap Hack Attempts . | . . . . . Triggered . | . . . . . Disarmed . | . . . . . Reprogrammed . | . . . . . Reused . | . . . . . Traps Extracted . | . . . . . Installed . | . . . . . Triggered . | . . . . . Machines | -11 -10 -9 -9 -8 ---------- Run | Yrd Mat Mat Min Mat Machines Disabled . | . . . . . Max in Single Turn . | . . . . . Machines Repaired . | . . . . . Machines Dismantled . | . . . . . Machines Sabotaged . | . . . . . Overloaded Fab Kills . | . . . . . Hacking | -11 -10 -9 -9 -8 --------- Run | Yrd Mat Mat Min Mat Machines Accessed 4 | . 2 1 1 . Terminals 1 | . . 1 . . Fabricators . | . . . . . Repair Stations 1 | . 1 . . . Recycling Units 1 | . 1 . . . Scanalyzers . | . . . . . Garrison Access . | . . . . . Total Hacks 9 | . 6 2 1 . Successful 6 | . 3 2 1 . Failed 3 | . 3 . . . Catastrophic . | . . . . . Database Lockouts . | . . . . . Manual . | . . . . . Terminals 2 | . . 2 . . Fabricators . | . . . . . Repair Stations 2 | . 2 . . . Recycling Units 4 | . 4 . . . Scanalyzers . | . . . . . Garrison Access . | . . . . . Terminal Hacks 3 | . . 2 1 . Record 1 | . . 1 . . Open Door 1 | . . . 1 . Terminal Index 1 | . . 1 . . Fabricator Hacks . | . . . . . Repair Station Hacks 1 | . 1 . . . Scan Component 1 | . 1 . . . Recycling Unit Hacks 2 | . 2 . . . Report Inventory 1 | . 1 . . . Retrieve Components 1 | . 1 . . . Scanalyzer . | . . . . . Garrison Access Hacks . | . . . . . Unauthorized Hacks . | . . . . . Terminals . | . . . . . Fabricators . | . . . . . Repair Stations . | . . . . . Recycling Units . | . . . . . Scanalyzers . | . . . . . Garrison Access . | . . . . . Data Cores Recovered . | . . . . . Used . | . . . . . Hacking Detections 3 | . 2 1 . . Full Trace Events 1 | . 1 . . . Feedback Events . | . . . . . Feedback Blocked . | . . . . . Robot Schematics Acquired . | . . . . . Robots Built . | . . . . . Authchips . | . . . . . Time . | . . . . . Total Robot Build Rating . | . . . . . Part Schematics Acquired . | . . . . . Parts Built . | . . . . . Authchips . | . . . . . Time . | . . . . . Total Part Build Rating . | . . . . . Parts Repaired . | . . . . . Time . | . . . . . Parts Recycled . | . . . . . Recycled Matter . | . . . . . Retrieved Matter . | . . . . . Retrieved Components 1 | . 1 . . . Parts Scanalyzed . | . . . . . Part Schematics Acquired . | . . . . . Parts Damaged . | . . . . . Bothacking | -11 -10 -9 -9 -8 ------------ Run | Yrd Mat Mat Min Mat Used RIF Installer . | . . . . . Robots Hacked . | . . . . . Non-combat . | . . . . . Combat . | . . . . . Robot Hacks Applied . | . . . . . Relay Couplers Released . | . . . . . Fabnet Peak Effective % . | . . . . . Robots Rewired . | . . . . . Allies Hacked . | . . . . . Hacks Repelled . | . . . . . Allies | -11 -10 -9 -9 -8 -------- Run | Yrd Mat Mat Min Mat Total Allies 3 | . . . 3 . Largest Group 3 | . . . 3 . Highest-Rated Group 40 | . . . 40 . Highest-Rated Ally 16 | . . . 16 . Total Orders 1 | . . . 1 . ROAM 1 | . . . 1 . Ally Attacks 8 | . . . 8 . Total Damage 22 | . . . 22 . Kills 2 | . . . 2 . Allies Corrupted . | . . . . . Allies Melted . | . . . . . Intel | -11 -10 -9 -9 -8 ------- Run | Yrd Mat Mat Min Mat Active Infowar (turns) 1318 | 31 492 48 657 90 Structural 1086 | . 392 48 556 90 Seismic 131 | 31 100 . . . ECM 323 | . . 47 276 . Robot Analysis Total . | . . . . . Derelict Logs Recovered 1 | . . . 1 . Drone Launches . | . . . . . Drone Recoveries . | . . . . . Exploration | -11 -10 -9 -9 -8 ------------- Run | Yrd Mat Mat Min Mat Turns Passed 1801 | 121 492 48 1041 99 Spaces Moved 1353 | 72 357 39 804 81 Core 9 | 9 . . . . Treads . | . . . . . Legs 931 | 63 357 39 472 . Wheels . | . . . . . Hover . | . . . . . Flight 413 | . . . 332 81 Fastest Speed 50 | 50 120 120 117 117 Average Speed 120 | 123 120 120 121 117 Slowest Speed 200 | 200 120 120 190 117 Overloaded Moves . | . . . . . Propulsion Burnouts . | . . . . . Robots Hopped . | . . . . . Potential Cave-ins . | . . . . . Cave-ins Triggered . | . . . . . Exploration Rate (%) 33 | 5 53 6 96 8 Regions Visited 4 Branch Regions 1 Pre-discovered Areas . | . . . . . Known Exits Taken . | . . . . . Unknown Exits Taken 4 | 1 1 1 1 . Scrap Searched 1 | . . . 1 . Spaces Dug . | . . . . . Terrain Destroyed . | . . . . . Melee . | . . . . . Projectile . | . . . . . AOE . | . . . . . Terrain Rammed . | . . . . . Walls Destroyed . | . . . . . Machines Disabled . | . . . . . Actions | -11 -10 -9 -9 -8 --------- Run | Yrd Mat Mat Min Mat Total 1451 | 91 389 40 848 83 Wait 22 | . . . 22 . Move 1349 | 71 356 38 803 81 Hop . | . . . . . Pick Up 14 | 4 9 . 1 . Fast Attach 10 | 6 1 . 3 . Attach 3 | . . 2 1 . Detach 2 | . . . 2 . Swap 6 | . 2 . 3 1 Drop 6 | . 5 . 1 . Fire 39 | 10 16 . 12 1 Melee . | . . . . . Ram . | . . . . . Kick . | . . . . . Crush . | . . . . . Escape Stasis . | . . . . . Rewire . | . . . . . Trap . | . . . . . Miscellaneous . | . . . . . Route ------- -11/Scrapyard -10/Materials (discovered 3 exits: *Mat x2 / [*Sub]) -9/Materials -9/Mines (discovered 2 exits: [*Mat x2]) -8/Materials History --------- Turn | Location | Event 29 | -11/Scrapyard | Discovered new exit (range 15) 122 | -11/Scrapyard | Entered Materials 123 | -10/Materials | Met a group of wandering Federalists 309 | -10/Materials | Build established: Mutant 373 | -10/Materials | Discovered new exit (range 15) 483 | -10/Materials | Discovered new exit (range 14) 587 | -10/Materials | Discovered new exit (range 16) 614 | -10/Materials | Entered another Materials area 614 | -9/Materials | Evolved 2 slots: Utility x2 616 | -9/Materials | Discovered new exit (range 8) 662 | -9/Materials | Entered Mines 767 | -9/Mines | Discovered new exit (range 4) 1029 | -9/Mines | Build established: Scavenger-Mutant 1101 | -9/Mines | Learned Materials terminal intel 1228 | -9/Mines | Met a Derelict who couldn't figure out how to use a Trap Extractor 1410 | -9/Mines | Assisted by bots powering up and referring to "LRC-V3" 1692 | -9/Mines | Discovered new exit (range 9) 1703 | -9/Mines | Entered Materials 1703 | -8/Materials | Evolved 2 slots: Propulsion x2 1704 | -8/Materials | Loaded intel: 12 terminal locations 1802 | -8/Materials | Self-destructed Last Messages --------------- 01419_ Found 60 Matter. 01420_ Acquired 31 matter. 01435_ Dropped Lgt. Ion Engine. 01439_ Acquired Structural Scanner. 01591_ Hacking Suite destroyed. 01639_ System corrupted: Matter fused (-9). 01660_ K-01 Serf collects debris. 01670_ Acquired 9 matter. 01672_ K-01 Serf cleans the Laser Drill. 01692_ EXIT=FOUND 01703_ T-07 Excavator is excavating. PARAMETERS=PROPULSION+2 LOCATION=UNKNOWN GOAL=ESCAPE Loading Materials terminal intel (x12)... 01726_ K-01 Serf collects debris. 01794_ W-25 Informer sends out distress signal. 01795_ K-01 Serf collects debris. 01801_ Flight Unit destroyed. 01801_ K-01 Serf collects debris. Map ----- +----------------------------------------------------+ | | | ?????????????????????????????????????????????????? | | ?????????????????????????????????????????????????? | | ?????????????????????????????????????????????????? | | ??????????????????????########???????????????????? | | ?????############??###########???????????????????? | | ?????############?## ##???????????????????? | | T"""?## ##?## """ =##???????????????????? | | ?????## """ ##?## """ # ???????????????????? | | ?????## """ ##### """ !! # ???????????????????? | | ?????## """ ##### !! # ???????????????????? | | ?????## # # """ # ???????????????????? | | ?????## """ # # """ # ???????????????????? | | ?????## """ # # """ # ???????????????????? | | ?????## """ + + ##???????????????????? | | ?????## # ######+####???????????????????? | | ????? ########## # ##???????????????????? | | ????? ########## # ##???????????????????? | | ??????????????## # ##???????????????????? | | ??????????????## # ##???????????????????? | | ??????????????## # ##???????????????????? | | ??????????????## + ##???????????????????? | | ??????????????## # ##???????????????????? | | ??????????????## # ##???????????????????? | | ??????????????## # #####????????????????? | | ??????????????## ######@#######????????????????? | | ??????????????## ###### ##????????????????? | | ??????????????## ##??## w # ????????????????? | | ??????????????## ##??## # ????????????????? | | ?????????????? ##??## k # ????????????????? | | ??????????????? ##??## # ????????????????? | | ??????????????? ##??## # ????????????????? | | ?????????????? ##??######g## ????????????????? | | ?????????????? ?? g ????????????????? | | ?????????????? ????????? ?????????????????? | | ???T??????????""" ???????? # ????????????????? | | ????????????????? ???????? # ???????????????? | | ??????????????????????????" ? "????""????????? | | ?????????????????????????? ? "????T"????????? | | ???????????????????????? # ???""????????? | | ????????????????????????###### ?????????????? | | ????????????????????????# # ""?????????????? | | ?????????????????????????????? "??????????????? | | ??????????????????????????????? "??????????????? | | ??????????????????????????????? ??????????????? | | ??????????????????????????????? ???????????????? | | ??????????????????????????????? ?????????????????? | | ?????????????????????????????????????????????????? | | ?????????????????????????????????????????????????? | | ?????????????????????????????????????????????????? | +----------------------------------------------------+ Best States ------------- Heat Dissipation 31 Energy Generation 10 Energy Capacity 250 Matter Stores 300 Matter Capacity 300 Sight Range 16 Terrain Scan Density 10 ECM Strength 1 Evasion (%) 55 Offensive Hacking 10 Trap Extractor Capacity 6 Item Schematics ----------------- None Robot Schematics ------------------ None Fabricated ------------ Nothing Repaired ---------- Nothing Alien Tech Used ----------------- None Achievements -------------- None Challenges ------------ None Game ------ Seed DisintegrationLegTerrabomb Manual? 0 Play Time 00:24:17 Cumulative 36.4 hours Start 2025.09.06 @ 04:08:59 End 2025.09.06 @ 04:42:12 Sessions 1 Manual Loads 0 Difficulty Rogue Special Mode None Game No. 47 Rogue 17 Adventurer 30 Explorer 0 Win Type - Total 0 Types 0/0/0/0/0/0/0/0/0/0 Lore% 14 Gallery% 23 Achievement% 23 Wizard Run 0 Options --------- Layout 1 ASCII 0 Keyboard 1 Movement Arrows Keybinds 0 Fullscreen 1 Font 24/Terminus Map View 50x35 Zoom Use 0% Tactical HUD 1 Map Filters NONE Filters NONE Steam 1 RUN: 071b22ce-2a4b-4a87-b000-6fd7ea45f146